lending/lending_fUSD_20240605
["ID","MTS","AMOUNT","RATE_DAILY","PERIOD"]
[328617230,1717618246010,-335.1525429,0.00029899,4]
[328617231,1717618246019,-219.761133,0.00029899,7]
[328617232,1717618246028,-332.18887961,0.00029899,4]
[328617233,1717618246038,-500.0,0.00029899,4]
[328617234,1717618246046,-162.00616074,0.00029899,2]
[328617235,1717618246055,-500.0,0.00029899,4]
[328617236,1717618246064,-340.52037839,0.00029899,4]
[328617237,1717618246073,-500.0,0.00029899,4]
[328617238,1717618246082,-238.95859025,0.00029899,4]
[328617239,1717618246091,-151.0,0.00029899,7]
[328617240,1717618246100,-500.0,0.00029899,4]
[328617241,1717618246110,-188.343454,0.00029899,7]
[328617243,1717618246121,-500.0,0.00029899,4]
[328617244,1717618246130,-500.0,0.00029899,4]
[328617245,1717618246139,-500.0,0.00029899,4]
[328617246,1717618246148,-500.0,0.00029899,4]
[328617247,1717618246158,-354.09443417,0.00029899,4]
[328617248,1717618246167,-500.0,0.00029899,4]
[328617249,1717618246177,-500.0,0.00029899,4]
[328617250,1717618246186,-636.40313376,0.00029899,4]
[328617251,1717618246197,-500.0,0.00029899,4]
[328617252,1717618246207,-500.0,0.00029899,4]
[328617253,1717618246216,-784.88,0.00029899,4]
[328617254,1717618246225,-500.0,0.00029899,4]
[328617255,1717618246234,-687.36,0.00029899,4]
[328617256,1717618246243,-2545.53,0.00029899,4]
[328617257,1717618246252,-951.38,0.00029899,4]
[328617258,1717618246262,-500.0,0.00029899,4]
[328617259,1717618246271,-151.0,0.00029899,7]
[328617260,1717618246281,-500.0,0.00029899,4]
[328617261,1717618246290,-1358.75,0.00029899,4]
[328617262,1717618246299,-1052.52,0.00029899,4]
[328617263,1717618246309,-244.929612,0.00029899,7]
[328617264,1717618246318,-4000.0,0.00029899,2]
[328617265,1717618246328,-244.929612,0.00029899,7]
[328617266,1717618246337,-4236.53,0.00029899,4]
[328617267,1717618246346,-500.0,0.00029899,4]
[328617268,1717618246356,-500.0,0.00029899,4]
[328617269,1717618246366,-500.0,0.00029899,4]
[328617270,1717618246375,-1171.59,0.00029899,4]
[328617271,1717618246384,-500.0,0.00029899,4]
[328617272,1717618246393,-829.9,0.00029899,4]
[328617273,1717618246402,-500.0,0.00029899,4]
[328617274,1717618246411,-500.0,0.00029899,4]
[328617275,1717618246421,-12054.5055101,0.00029899,2]
[328617276,1717618246431,-261.99871468,0.00029899,2]
[328617277,1717618246441,-2674.77791586,0.00029899,2]
[328617278,1717618246450,-500.0,0.00029899,4]
[328617279,1717618246459,-500.0,0.00029899,4]
[328617280,1717618246468,-150.0,0.00029899,10]
[328617281,1717618246477,-150.0,0.00029899,10]
[328617282,1717618246486,-162.00616074,0.00029899,2]
[328617283,1717618246496,-154.0,0.00029899,5]
[328617284,1717618246505,-162.00616074,0.000299,2]
[328617285,1717618246522,-12915.55149619,0.000299,2]
[328617286,1717618246537,-160.0,0.000299,2]
[328617287,1717618246552,-1000.0,0.000299,2]
[328617288,1717618246564,-238.06581424,0.000299,7]
[328617289,1717618246577,-238.06581424,0.000299,7]
[328617290,1717618246591,-238.06581424,0.000299,7]
[328617291,1717618246605,-238.06581424,0.000299,7]
[328617292,1717618246618,-238.06581424,0.000299,7]
[328617293,1717618246633,-238.06581424,0.000299,7]
[328617294,1717618246647,-238.06581424,0.000299,7]
[328617295,1717618246661,-238.06581424,0.000299,7]
[328617296,1717618246674,-238.06581424,0.000299,7]
[328617298,1717618246687,-238.06581424,0.000299,7]
[328617301,1717618246701,-238.06581424,0.000299,7]
[328617303,1717618246715,-238.06581424,0.000299,7]
[328617305,1717618246728,-238.06581424,0.000299,7]
[328617306,1717618246739,-238.06581424,0.000299,7]
[328617308,1717618246750,-238.06581424,0.000299,7]
[328617311,1717618246763,-238.06581424,0.000299,7]
[328617313,1717618246776,-238.06581424,0.000299,7]
[328617315,1717618246790,-238.06581424,0.000299,7]
[328617318,1717618246802,-238.06581424,0.000299,7]
[328617320,1717618246817,-238.56,0.000299,7]
[328617323,1717618246831,-952.33825696,0.000299,7]
[328617325,1717618246843,-952.33825696,0.000299,7]
[328617327,1717618246854,-952.33825696,0.000299,7]
[328617329,1717618246865,-952.33825696,0.000299,7]
[328617332,1717618246877,-952.33825696,0.000299,7]
[328617334,1717618246889,-952.33825696,0.000299,7]
[328617337,1717618246903,-5800.0,0.000299,2]
[328617339,1717618246913,-952.33825696,0.000299,7]
[328617341,1717618246924,-952.33825696,0.000299,7]
[328617343,1717618246937,-952.33825696,0.000299,7]
[328617345,1717618246951,-952.33825696,0.000299,7]
[328617348,1717618246963,-952.33825696,0.000299,7]
[328617350,1717618246973,-952.33825696,0.000299,7]
[328617352,1717618246985,-952.33825696,0.000299,7]
[328617354,1717618246997,-952.33825696,0.000299,7]
[328617357,1717618247009,-952.33825696,0.000299,7]
[328617359,1717618247021,-952.33825696,0.000299,7]
[328617361,1717618247033,-952.33825696,0.000299,7]
[328617364,1717618247046,-952.33825696,0.000299,7]
[328617366,1717618247058,-952.33825696,0.000299,7]
[328617368,1717618247070,-952.83,0.000299,7]
[328617370,1717618247082,-500.0,0.000299,3]
[328617373,1717618247095,-241.429316,0.000299,7]
[328617375,1717618247107,-177.635,0.000299,7]
[328617377,1717618247122,-177.635,0.000299,7]
[328617379,1717618247134,-419.42175758,0.000299,2]
[328617382,1717618247147,-151.0,0.000299,7]
[328617384,1717618247159,-195.6093019,0.000299,2]
[328617386,1717618247171,-162.00616074,0.000299,2]
[328617388,1717618247183,-1055.87863486,0.000299,2]
[328617390,1717618247195,-258.64790106,0.000299,15]
[328617393,1717618247206,-7695.770207,0.000299,2]
[328617395,1717618247217,-244.929612,0.000299,7]
[328617397,1717618247230,-244.929612,0.000299,7]
[328617399,1717618247241,-150.0,0.000299,6]
[328617402,1717618247253,-151.0,0.000299,7]
[328617404,1717618247264,-601.78683,0.000299,7]
[328617406,1717618247275,-12054.5055101,0.000299,2]
[328617408,1717618247287,-601.78683,0.000299,7]
[328617411,1717618247299,-261.99871468,0.000299,2]
[328617413,1717618247311,-2674.77791586,0.000299,2]
[328617415,1717618247322,-301.01734805,0.0002992,2]
[328617417,1717618247333,-292.9,0.00029936,2]
[328617420,1717618247345,-309.90151896,0.00029969,2]
[328617422,1717618247356,-573.17,0.00029969,4]
[328617424,1717618247368,-500.0,0.00029969,4]
[328617426,1717618247379,-500.0,0.00029969,4]
[328617428,1717618247391,-1293.76,0.00029969,4]
[328617431,1717618247402,-1089.54,0.00029969,4]
[328617433,1717618247414,-877.44,0.00029969,4]
[328617435,1717618247425,-150.5,0.0002997,15]
[328617437,1717618247437,-150.5,0.0002997,15]
[328617440,1717618247449,-328.0,0.0002997,15]
[328617442,1717618247460,-328.0,0.0002997,15]
[328617444,1717618247472,-284.0,0.0002997,15]
[328617446,1717618247483,-284.0,0.0002997,15]
[328617448,1717618247495,-154.36466411,0.00029972,2]
[328617449,1717618247507,-500.0,0.00029975,4]
[328617451,1717618247519,-500.0,0.00029975,4]
[328617453,1717618247531,-361.71438855,0.00029975,4]
[328617455,1717618247543,-500.0,0.00029975,4]
[328617457,1717618247554,-500.0,0.00029975,4]
[328617459,1717618247564,-527.73,0.00029975,4]
[328617461,1717618247573,-500.0,0.00029975,4]
[328617462,1717618247582,-500.0,0.00029975,4]
[328617464,1717618247591,-5598.89,0.00029975,4]
[328617466,1717618247601,-500.0,0.00029975,4]
[328617468,1717618247610,-500.0,0.00029975,4]
[328617470,1717618247619,-500.0,0.00029976,4]
[328617471,1717618247628,-500.0,0.00029976,4]
[328617473,1717618247637,-784.88,0.00029976,4]
[328617475,1717618247646,-500.0,0.00029976,4]
[328617477,1717618247656,-2545.53,0.00029976,4]
[328617478,1717618247665,-951.38,0.00029976,4]
[328617480,1717618247675,-1052.52,0.00029976,4]
[328617482,1717618247686,-500.0,0.00029976,4]
[328617484,1717618247695,-1171.59,0.00029976,4]
[328617486,1717618247706,-500.0,0.00029976,4]
[328617487,1717618247715,-829.9,0.00029976,4]
[328617489,1717618247725,-500.0,0.00029976,4]
[328617491,1717618247734,-500.0,0.00029977,4]
[328617493,1717618247743,-500.0,0.00029977,4]
[328617513,1717618247951,-500.0,0.00029977,4]
[328617515,1717618247973,-234.16646395,0.00029977,4]
[328617517,1717618247984,-500.0,0.00029977,4]
[328617519,1717618247994,-155.39228239,0.00029977,4]
[328617521,1717618248004,-559.12,0.00029977,4]
[328617523,1717618248014,-500.0,0.00029977,4]
[328617524,1717618248022,-500.0,0.00029977,4]
[328617526,1717618248031,-1000.0,0.00029977,5]
[328617528,1717618248040,-528.40884745,0.00029977,4]
[328617530,1717618248050,-500.0,0.00029977,4]
[328617532,1717618248059,-500.0,0.00029977,4]
[328617534,1717618248068,-500.0,0.00029977,4]
[328617536,1717618248077,-500.0,0.00029977,4]
[328617538,1717618248086,-500.0,0.00029977,4]
[328617540,1717618248095,-500.0,0.00029977,4]
[328617541,1717618248104,-500.0,0.00029977,4]
[328617543,1717618248118,-500.0,0.00029977,4]
[328617545,1717618248127,-968.18,0.00029977,4]
[328617547,1717618248136,-529.10016777,0.00029977,4]
[328617548,1717618248144,-500.0,0.00029977,4]
[328617550,1717618248155,-500.0,0.00029977,4]
[328617552,1717618248165,-500.0,0.00029977,4]
[328617554,1717618248175,-500.0,0.00029977,4]
[328617556,1717618248184,-500.0,0.00029977,4]
[328617558,1717618248195,-500.0,0.00029977,4]
[328617560,1717618248204,-500.0,0.00029977,4]
[328617561,1717618248213,-500.0,0.00029977,4]
[328617563,1717618248222,-500.0,0.00029977,4]
[328617565,1717618248230,-500.0,0.00029977,4]
[328617567,1717618248239,-533.54235236,0.00029977,4]
[328617569,1717618248248,-500.0,0.00029977,4]
[328617571,1717618248257,-500.0,0.00029977,4]
[328617573,1717618248267,-500.0,0.00029977,4]
[328617575,1717618248277,-500.0,0.00029977,4]
[328617576,1717618248287,-500.0,0.00029977,4]
[328617578,1717618248296,-340.95309308,0.00029977,4]
[328617580,1717618248306,-500.0,0.00029977,4]
[328617582,1717618248315,-500.0,0.00029977,4]
[328617584,1717618248324,-686.43,0.00029977,4]
[328617586,1717618248334,-500.0,0.00029977,4]
[328617588,1717618248343,-500.0,0.00029977,4]
[328617589,1717618248352,-567.24164779,0.00029977,4]
[328617591,1717618248361,-500.0,0.00029977,4]
[328617593,1717618248370,-500.0,0.00029977,4]
[328617595,1717618248379,-568.35,0.00029977,4]
[328617597,1717618248389,-500.0,0.00029977,4]
[328617598,1717618248398,-500.0,0.00029977,4]
[328617600,1717618248407,-500.0,0.00029977,4]
[328617602,1717618248417,-500.0,0.00029977,4]
[328617604,1717618248425,-1442.26,0.00029977,4]
[328617606,1717618248434,-500.0,0.00029977,4]
[328617608,1717618248443,-687.36,0.00029977,4]
[328617609,1717618248453,-500.0,0.00029977,4]
[328617611,1717618248462,-500.0,0.00029977,4]
[328617613,1717618248471,-500.0,0.00029977,4]
[328617615,1717618248480,-500.0,0.00029977,4]
[328617617,1717618248490,-500.0,0.00029977,4]
[328617619,1717618248500,-1358.75,0.00029977,4]
[328617621,1717618248509,-612.4517015,0.00029977,4]
[328617623,1717618248518,-607.04173224,0.00029977,4]
[328617625,1717618248531,-500.0,0.00029977,4]
[328617626,1717618248541,-500.0,0.00029977,4]
[328617628,1717618248550,-500.0,0.00029977,4]
[328617630,1717618248559,-4236.53,0.00029977,4]
[328617632,1717618248569,-500.0,0.00029977,4]
[328617634,1717618248578,-500.0,0.00029977,4]
[328617636,1717618248586,-1948.67,0.00029977,4]
[328617638,1717618248595,-500.0,0.00029977,4]
[328617639,1717618248604,-1946.74,0.00029977,4]
[328617641,1717618248613,-500.0,0.00029977,4]
[328617643,1717618248622,-500.0,0.00029977,4]
[328617645,1717618248631,-231.777803,0.00029977,7]
[328617647,1717618248640,-554.38151536,0.00029977,4]
[328617649,1717618248649,-500.0,0.00029977,4]
[328617650,1717618248658,-500.0,0.00029977,4]
[328617652,1717618248667,-2380.68,0.00029977,4]
[328617654,1717618248676,-500.0,0.00029977,4]
[328617656,1717618248686,-500.0,0.00029977,4]
[328617658,1717618248695,-601.78683,0.00029977,7]
[328617660,1717618248705,-500.0,0.00029977,4]
[328617662,1717618248714,-601.78683,0.00029977,7]
[328617664,1717618248723,-500.0,0.00029977,4]
[328617665,1717618248733,-500.0,0.00029977,4]
[328617667,1717618248742,-573.17,0.00029978,4]
[328617669,1717618248752,-573.17,0.00029978,4]
[328617671,1717618248761,-500.0,0.00029978,4]
[328617672,1717618248770,-500.0,0.00029978,4]
[328617673,1717618248779,-500.0,0.00029978,4]
[328617674,1717618248788,-500.0,0.00029978,4]
[328617675,1717618248797,-1293.76,0.00029978,4]
[328617676,1717618248806,-1293.76,0.00029978,4]
[328617677,1717618248815,-1089.54,0.00029978,4]
[328617678,1717618248824,-1089.54,0.00029978,4]
[328617679,1717618248833,-877.44,0.00029978,4]
[328617680,1717618248842,-877.44,0.00029978,4]
[328617681,1717618248851,-177.635,0.00029979,7]
[328617682,1717618248860,-177.635,0.00029979,7]
[328617683,1717618248869,-179563.988032,0.00029979,2]
[328617684,1717618248878,-146485.0434412,0.00029979,2]
[328617686,1717618248887,-113406.0988503,0.00029979,2]
[328617687,1717618248897,-34609.52144882,0.00029979,2]
[328617690,1717618248914,-340.0090999,0.00029979,2]
[328617692,1717618248925,-953.445,0.00029979,2]
[328617695,1717618248937,-2072.43295698,0.00029979,2]
[328617697,1717618248948,-6243.82509669,0.00029979,2]
[328617699,1717618248959,-1009.71667059,0.00029979,2]
[328617701,1717618248970,-8829.937884,0.00029979,2]
[328617703,1717618248981,-5800.26058961,0.00029979,2]
[328617706,1717618248992,-3353.23507415,0.00029979,2]
[328617708,1717618249004,-17114.77043866,0.00029979,2]
[328617710,1717618249014,-47248.2096686,0.00029979,2]
[328617712,1717618249024,-244.929612,0.00029979,7]
[328617714,1717618249033,-244.929612,0.00029979,7]
[328617716,1717618249043,-244.929612,0.00029979,7]
[328617718,1717618249051,-244.929612,0.00029979,7]
[328617720,1717618249060,-244.929612,0.00029979,7]
[328617722,1717618249069,-244.929612,0.00029979,7]
[328617724,1717618249079,-601.78683,0.00029979,7]
[328617726,1717618249088,-601.78683,0.00029979,7]
[328617728,1717618249097,-601.78683,0.00029979,7]
[328617730,1717618249106,-601.78683,0.00029979,7]
[328617732,1717618249119,-601.78683,0.00029979,7]
[328617734,1717618249128,-601.786837,0.00029979,7]
[328617736,1717618249138,-150.5,0.0002998,15]
[328617738,1717618249146,-150.5,0.0002998,15]
[328617740,1717618249156,-328.0,0.0002998,15]
[328617742,1717618249165,-328.0,0.0002998,15]
[328617744,1717618249175,-328.0,0.0002998,15]
[328617746,1717618249183,-329.5,0.0002998,15]
[328617748,1717618249194,-284.0,0.0002998,15]
[328617750,1717618249203,-284.0,0.0002998,15]
[328617752,1717618249212,-284.0,0.0002998,15]
[328617754,1717618249221,-289.62,0.0002998,15]
[328617756,1717618249231,-500.0,0.00029985,4]
[328617758,1717618249240,-500.0,0.00029985,4]
[328617760,1717618249249,-500.0,0.00029985,4]
[328617762,1717618249258,-500.0,0.00029985,4]
[328617764,1717618249268,-687.36,0.00029985,4]
[328617766,1717618249276,-500.0,0.00029985,4]
[328617768,1717618249285,-500.0,0.00029985,4]
[328617770,1717618249294,-573.17,0.00029985,4]
[328617772,1717618249304,-1358.75,0.00029985,4]
[328617774,1717618249313,-500.0,0.00029985,4]
[328617776,1717618249323,-4236.53,0.00029985,4]
[328617778,1717618249332,-500.0,0.00029985,4]
[328617780,1717618249341,-1293.76,0.00029985,4]
[328617782,1717618249351,-500.0,0.00029985,4]
[328617784,1717618249359,-1089.54,0.00029985,4]
[328617786,1717618249369,-500.0,0.00029985,4]
[328617788,1717618249378,-500.0,0.00029985,4]
[328617790,1717618249387,-877.44,0.00029985,4]
[328617792,1717618249396,-500.0,0.00029985,4]
[328617794,1717618249405,-500.0,0.00029985,4]
[328617796,1717618249415,-500.0,0.00029986,4]
[328617798,1717618249424,-500.0,0.00029986,4]
[328617800,1717618249434,-527.76842557,0.00029986,4]
[328617802,1717618249443,-500.0,0.00029986,4]
[328617804,1717618249452,-184.01399162,0.00029986,4]
[328617806,1717618249461,-558.86192054,0.00029986,4]
[328617808,1717618249470,-432.01634097,0.00029986,4]
[328617809,1717618249479,-500.0,0.00029986,4]
[328617811,1717618249489,-497.98720606,0.00029986,4]
[328617814,1717618249498,-1000.0,0.00029986,5]
[328617815,1717618249508,-1000.0,0.00029986,5]
[328617818,1717618249519,-500.0,0.00029986,4]
[328617819,1717618249528,-540.74695781,0.00029986,4]
[328617821,1717618249537,-500.0,0.00029986,4]
[328617823,1717618249546,-500.0,0.00029986,4]
[328617825,1717618249556,-500.0,0.00029986,4]
[328617828,1717618249565,-364.64344818,0.00029986,4]
[328617829,1717618249575,-500.0,0.00029986,4]
[328617832,1717618249584,-500.0,0.00029986,4]
[328617833,1717618249594,-500.0,0.00029986,4]
[328617835,1717618249603,-500.0,0.00029986,4]
[328617837,1717618249613,-511.09307698,0.00029986,4]
[328617840,1717618249622,-968.18,0.00029986,4]
[328617842,1717618249631,-968.18,0.00029986,4]
[328617843,1717618249640,-500.0,0.00029986,4]
[328617845,1717618249649,-500.0,0.00029986,4]
[328617848,1717618249659,-500.0,0.00029986,4]
[328617850,1717618249669,-369.9221692,0.00029986,4]
[328617852,1717618249678,-503.47527265,0.00029986,4]
[328617854,1717618249688,-500.0,0.00029986,4]
[328617856,1717618249697,-185.93072716,0.00029986,4]
[328617858,1717618249707,-500.0,0.00029986,4]
[328617860,1717618249716,-500.0,0.00029986,4]
[328617861,1717618249724,-525.08673469,0.00029986,4]
[328617863,1717618249734,-500.0,0.00029986,4]
[328617866,1717618249743,-359.84455059,0.00029986,4]
[328617867,1717618249753,-500.0,0.00029986,4]
[328617869,1717618249763,-500.0,0.00029986,4]
[328617871,1717618249772,-500.0,0.00029986,4]
[328617874,1717618249782,-500.0,0.00029986,4]
[328617875,1717618249791,-500.0,0.00029986,4]
[328617877,1717618249801,-500.0,0.00029986,4]
[328617879,1717618249810,-500.0,0.00029986,4]
[328617881,1717618249819,-500.0,0.00029986,4]
[328617883,1717618249829,-500.0,0.00029986,4]
[328617885,1717618249839,-500.0,0.00029986,4]
[328617887,1717618249848,-500.0,0.00029986,4]
[328617889,1717618249858,-500.0,0.00029986,4]
[328617891,1717618249867,-490.82565051,0.00029986,4]
[328617894,1717618249877,-686.43,0.00029986,4]
[328617895,1717618249887,-686.43,0.00029986,4]
[328617897,1717618249896,-500.0,0.00029986,4]
[328617900,1717618249906,-500.0,0.00029986,4]
[328617902,1717618249915,-413.86,0.00029986,4]
[328617904,1717618249924,-500.0,0.00029986,4]
[328617906,1717618249934,-355.02413432,0.00029986,4]
[328617908,1717618249943,-568.35,0.00029986,4]
[328617910,1717618249952,-568.35,0.00029986,4]
[328617912,1717618249961,-500.0,0.00029986,4]
[328617914,1717618249970,-304.90357675,0.00029986,4]
[328617916,1717618249979,-319.81955132,0.00029986,4]
[328617918,1717618249989,-500.0,0.00029986,4]
[328617920,1717618249998,-500.0,0.00029986,4]
[328617922,1717618250007,-1442.26,0.00029986,4]
[328617924,1717618250017,-1442.26,0.00029986,4]
[328617926,1717618250027,-500.0,0.00029986,4]
[328617927,1717618250036,-500.0,0.00029986,4]
[328617930,1717618250045,-500.0,0.00029986,4]
[328617932,1717618250054,-500.0,0.00029986,4]
[328617934,1717618250064,-500.0,0.00029986,4]
[328617936,1717618250073,-570.50396633,0.00029986,4]
[328617938,1717618250083,-401.4387398,0.00029986,4]
[328617940,1717618250093,-244.929612,0.00029986,7]
[328617942,1717618250102,-244.929611,0.00029986,7]
[328617944,1717618250113,-527.84719504,0.00029986,4]
[328617946,1717618250123,-500.0,0.00029986,4]
[328617948,1717618250131,-373.40404247,0.00029986,4]
[328617949,1717618250141,-500.0,0.00029986,4]
[328617952,1717618250150,-500.0,0.00029986,4]
[328617954,1717618250161,-500.0,0.00029986,4]
[328617956,1717618250170,-500.0,0.00029986,4]
[328617958,1717618250179,-500.0,0.00029986,4]
[328617960,1717618250190,-500.0,0.00029986,4]
[328617961,1717618250199,-1948.67,0.00029986,4]
[328617963,1717618250208,-1948.67,0.00029986,4]
[328617965,1717618250217,-1946.74,0.00029986,4]
[328617967,1717618250226,-1946.74,0.00029986,4]
[328617969,1717618250235,-500.0,0.00029986,4]
[328617971,1717618250244,-500.0,0.00029986,4]
[328617973,1717618250253,-500.0,0.00029986,4]
[328617975,1717618250264,-500.0,0.00029986,4]
[328617977,1717618250273,-193.31953239,0.00029986,4]
[328617979,1717618250282,-2380.68,0.00029986,4]
[328617981,1717618250292,-2380.68,0.00029986,4]
[328617984,1717618250302,-500.0,0.00029986,4]
[328617986,1717618250311,-500.0,0.00029986,4]
[328617988,1717618250321,-500.0,0.00029986,4]
[328617989,1717618250330,-500.0,0.00029986,4]
[328617992,1717618250339,-177.635,0.00029987,7]
[328617993,1717618250349,-177.635,0.00029987,7]
[328617996,1717618250358,-309.90151896,0.00029989,2]
[328617997,1717618250368,-193.0,0.0002999,2]
[328617999,1717618250377,-150.5,0.0002999,15]
[328618001,1717618250386,-150.5,0.0002999,15]
[328618003,1717618250396,-328.0,0.0002999,15]
[328618005,1717618250405,-328.0,0.0002999,15]
[328618008,1717618250414,-328.0,0.0002999,15]
[328618009,1717618250424,-328.0,0.0002999,15]
[328618011,1717618250433,-284.0,0.0002999,15]
[328618013,1717618250442,-284.0,0.0002999,15]
[328618015,1717618250451,-284.0,0.0002999,15]
[328618017,1717618250460,-284.0,0.0002999,15]
[328618019,1717618250469,-500.0,0.00029991,4]
[328618021,1717618250479,-500.0,0.00029991,4]
[328618024,1717618250489,-500.0,0.00029991,4]
[328618026,1717618250498,-500.0,0.00029991,4]
[328618028,1717618250507,-500.0,0.00029991,4]
[328618029,1717618250517,-500.0,0.00029991,4]
[328618031,1717618250527,-784.88,0.00029991,4]
[328618033,1717618250536,-500.0,0.00029991,4]
[328618036,1717618250546,-687.36,0.00029991,4]
[328618038,1717618250555,-2545.53,0.00029991,4]
[328618039,1717618250565,-500.0,0.00029991,4]
[328618042,1717618250574,-951.38,0.00029991,4]
[328618043,1717618250583,-500.0,0.00029991,4]
[328618046,1717618250593,-500.0,0.00029991,4]
[328618047,1717618250603,-500.0,0.00029991,4]
[328618049,1717618250612,-1358.75,0.00029991,4]
[328618051,1717618250621,-1052.52,0.00029991,4]
[328618053,1717618250631,-295.94323083,0.00029991,4]
[328618056,1717618250645,-204.05676917,0.00029991,4]
[328618058,1717618250654,-500.0,0.00029991,4]
[328618060,1717618250663,-363.03051736,0.00029991,4]
[328618062,1717618250675,-3873.49948264,0.00029991,4]
[328618064,1717618250683,-527.73,0.00029991,4]
[328618066,1717618250692,-500.0,0.00029991,4]
[328618068,1717618250702,-500.0,0.00029991,4]
[328618070,1717618250711,-500.0,0.00029991,4]
[328618072,1717618250721,-500.0,0.00029991,4]
[328618074,1717618250730,-500.0,0.00029991,4]
[328618076,1717618250739,-5598.89,0.00029991,4]
[328618078,1717618250749,-1171.59,0.00029991,4]
[328618080,1717618250759,-500.0,0.00029991,4]
[328618082,1717618250770,-500.0,0.00029991,4]
[328618084,1717618250782,-829.9,0.00029991,4]
[328618087,1717618250792,-500.0,0.00029991,4]
[328618089,1717618250801,-500.0,0.00029991,4]
[328618091,1717618250811,-500.0,0.00029991,4]
[328618093,1717618250820,-500.0,0.00029991,4]
[328618094,1717618250829,-500.0,0.00029991,4]
[328618097,1717618250838,-3823.8490554,0.00029992,2]
[328618099,1717618250848,-2406.5649397,0.00029992,2]
[328618101,1717618250857,-302.61221956,0.00029995,2]
[328618102,1717618250867,-2758.0,0.00029996,2]
[328618105,1717618250877,-500.0,0.00029996,4]
[328618107,1717618250886,-500.0,0.00029996,4]
[328618109,1717618250896,-500.0,0.00029996,4]
[328618111,1717618250905,-500.0,0.00029996,4]
[328618113,1717618250914,-500.0,0.00029996,4]
[328618115,1717618250924,-500.0,0.00029996,4]
[328618117,1717618250934,-500.0,0.00029996,4]
[328618119,1717618250943,-500.0,0.00029996,4]
[328618121,1717618250953,-500.0,0.00029996,4]
[328618123,1717618250963,-527.73,0.00029996,4]
[328618138,1717618251092,-500.0,0.00029996,4]
[328618140,1717618251101,-500.0,0.00029996,4]
[328618142,1717618251113,-5598.89,0.00029996,4]
[328618144,1717618251124,-500.0,0.00029996,4]
[328618146,1717618251133,-150.0,0.00029996,2]
[328618148,1717618251142,-500.0,0.00029996,4]
[328618150,1717618251151,-500.0,0.00029997,4]
[328618152,1717618251162,-495.91639449,0.00029997,4]
[328618154,1717618251171,-500.0,0.00029997,4]
[328618156,1717618251181,-500.0,0.00029997,4]
[328618158,1717618251191,-500.0,0.00029997,4]
[328618160,1717618251201,-500.0,0.00029997,4]
[328618162,1717618251210,-500.0,0.00029997,4]
[328618164,1717618251219,-500.0,0.00029997,4]
[328618166,1717618251228,-1000.0,0.00029997,5]
[328618168,1717618251237,-1000.0,0.00029997,5]
[328618170,1717618251246,-500.0,0.00029997,4]
[328618172,1717618251256,-182.87386073,0.00029997,4]
[328618174,1717618251265,-381.17876316,0.00029997,4]
[328618176,1717618251274,-500.0,0.00029997,4]
[328618178,1717618251285,-500.0,0.00029997,4]
[328618180,1717618251294,-500.0,0.00029997,4]
[328618182,1717618251303,-500.0,0.00029997,4]
[328618184,1717618251313,-968.18,0.00029997,4]